[Event "Titled Tuesday Blitz November 14 Late 2023"]
[White "tandercat"]
[Black "Villarreal, Agustin"]
[BlackFideId "125687"]
[WhiteElo "2044"]
[BlackElo "2429"]
[Result "0-1"]
[Round "4"]
[TimeControl "180+1"]
[Date "2023.11.14"]
[WhiteClock "0:00:00"]
[BlackClock "0:00:51"]
[Board "140"]

1. d4 {[%clk 0:03:00]}  d5 {[%clk 0:02:54]} 2. c4 {[%clk 0:02:59]}  e6 {[%clk 0:02:27]} 3. Nc3 {[%clk 0:02:58]}  Be7 {[%clk 0:02:17]} 4. cxd5 {[%clk 0:02:50]}  exd5 {[%clk 0:02:16]} 5. Bf4 {[%clk 0:02:50]}  c6 {[%clk 0:02:16]} 6. e3 {[%clk 0:02:48]}  Nf6 {[%clk 0:02:17]} 7. Bd3 {[%clk 0:02:47]}  O-O {[%clk 0:02:18]} 8. Nge2 {[%clk 0:02:43]}  Nbd7 {[%clk 0:02:19]} 9. h3 {[%clk 0:02:35]}  Re8 {[%clk 0:02:20]} 10. O-O {[%clk 0:02:35]}  Nf8 {[%clk 0:02:21]} 11. Qc2 {[%clk 0:02:32]}  Ne6 {[%clk 0:01:55]} 12. Bh2 {[%clk 0:02:28]}  g6 {[%clk 0:01:56]} 13. a3 {[%clk 0:02:23]}  Ng7 {[%clk 0:01:56]} 14. f3 {[%clk 0:02:08]}  Bf5 {[%clk 0:01:46]} 15. e4 {[%clk 0:02:05]}  dxe4 {[%clk 0:01:47]} 16. fxe4 {[%clk 0:02:04]}  Be6 {[%clk 0:01:45]} 17. Rad1 {[%clk 0:01:46]}  Qd7 {[%clk 0:01:37]} 18. Kh1 {[%clk 0:01:37]}  Rad8 {[%clk 0:01:36]} 19. Rf3 {[%clk 0:01:22]}  h6 {[%clk 0:01:32]} 20. Be5 {[%clk 0:01:17]}  Nh7 {[%clk 0:01:27]} 21. Nf4 {[%clk 0:01:08]}  Ng5 {[%clk 0:01:25]} 22. Rg3 {[%clk 0:00:47]}  f6 {[%clk 0:01:25]} 23. Nxe6 {[%clk 0:00:40]}  N7xe6 {[%clk 0:01:25]} 24. d5 {[%clk 0:00:21]}  fxe5 {[%clk 0:01:15]} 25. dxe6 {[%clk 0:00:20]}  Qxe6 {[%clk 0:01:15]} 26. h4 {[%clk 0:00:17]}  Nf7 {[%clk 0:01:12]} 27. Ne2 {[%clk 0:00:14]}  Bxh4 {[%clk 0:01:09]} 28. Rh3 {[%clk 0:00:13]}  Qf6 {[%clk 0:01:08]} 29. Bc4 {[%clk 0:00:07]}  Kg7 {[%clk 0:01:05]} 30. Rxd8 {[%clk 0:00:06]}  Nxd8 {[%clk 0:01:04]} 31. Qd3 {[%clk 0:00:05]}  Bg5 {[%clk 0:01:00]} 32. Rf3 {[%clk 0:00:03]}  Qe7 {[%clk 0:01:00]} 33. Qb3 {[%clk 0:00:02]}  b5 {[%clk 0:00:57]} 34. Bxb5 {[%clk 0:00:01]}  cxb5 {[%clk 0:00:57]} 35. Qxb5 {[%clk 0:00:02]}  Nf7 {[%clk 0:00:56]} 36. Nc3 {[%clk 0:00:02]}  Bf4 {[%clk 0:00:50]} 37. Nd5 {[%clk 0:00:02]}  Qh4+ {[%clk 0:00:50]} 38. Kg1 {[%clk 0:00:00]}  Qe1+ {[%clk 0:00:51]} 0-1


[Site "https://www.chess.com"]

[Event "Titled Tuesday Blitz November 14 Late 2023"]
[White "ATM622"]
[Black "Djordjevic, Dejan N"]
[BlackFideId "913316"]
[WhiteElo "2427"]
[BlackElo "2039"]
[Result "1-0"]
[Round "4"]
[TimeControl "180+1"]
[Date "2023.11.14"]
[WhiteClock "0:02:43"]
[BlackClock "0:01:50"]
[Board "142"]

1. d4 {[%clk 0:03:00]}  Nf6 {[%clk 0:02:30]} 2. c4 {[%clk 0:03:00]}  g6 {[%clk 0:02:29]} 3. g3 {[%clk 0:03:01]}  Bg7 {[%clk 0:02:30]} 4. Bg2 {[%clk 0:03:01]}  d6 {[%clk 0:02:31]} 5. Nf3 {[%clk 0:03:02]}  O-O {[%clk 0:02:31]} 6. O-O {[%clk 0:03:03]}  Nc6 {[%clk 0:02:32]} 7. Nc3 {[%clk 0:03:04]}  a6 {[%clk 0:02:32]} 8. b3 {[%clk 0:03:02]}  Bd7 {[%clk 0:02:29]} 9. Bb2 {[%clk 0:03:03]}  Qc8 {[%clk 0:02:28]} 10. Re1 {[%clk 0:03:02]}  Rb8 {[%clk 0:02:27]} 11. e4 {[%clk 0:03:02]}  e5 {[%clk 0:02:27]} 12. Nd5 {[%clk 0:02:58]}  Re8 {[%clk 0:02:21]} 13. Rc1 {[%clk 0:02:56]}  exd4 {[%clk 0:02:13]} 14. Nxd4 {[%clk 0:02:53]}  Ne5 {[%clk 0:02:05]} 15. f4 {[%clk 0:02:43]}  Nc6 {[%clk 0:01:59]} 16. Nxc6 {[%clk 0:02:42]}  Bxc6 {[%clk 0:01:58]} 17. Nxf6+ {[%clk 0:02:42]}  Bxf6 {[%clk 0:01:50]} 18. Bxf6 {[%clk 0:02:43]} 1-0


[Site "https://www.chess.com"]

[Event "Titled Tuesday Blitz November 14 Late 2023"]
[White "Quirke, Jeffrey"]
[Black "Sreyas Payyappat"]
[WhiteFideId "2013029"]
[BlackFideId "46674969"]
[WhiteElo "2285"]
[BlackElo "2490"]
[Result "0-1"]
[Round "4"]
[TimeControl "180+1"]
[Date "2023.11.14"]
[WhiteClock "0:00:16"]
[BlackClock "0:00:28"]
[Board "147"]

1. e4 {[%clk 0:03:00]}  c6 {[%clk 0:02:59]} 2. Nf3 {[%clk 0:02:59]}  d5 {[%clk 0:02:59]} 3. exd5 {[%clk 0:02:59]}  cxd5 {[%clk 0:03:00]} 4. Ne5 {[%clk 0:02:59]}  Nc6 {[%clk 0:02:59]} 5. d4 {[%clk 0:02:59]}  Nf6 {[%clk 0:02:58]} 6. f4 {[%clk 0:02:58]}  g6 {[%clk 0:02:58]} 7. c3 {[%clk 0:02:55]}  Bg7 {[%clk 0:02:57]} 8. Bd3 {[%clk 0:02:54]}  Bf5 {[%clk 0:02:52]} 9. O-O {[%clk 0:02:52]}  Qc7 {[%clk 0:02:50]} 10. h3 {[%clk 0:02:40]}  e6 {[%clk 0:02:48]} 11. Qf3 {[%clk 0:02:29]}  O-O-O {[%clk 0:02:47]} 12. Na3 {[%clk 0:02:22]}  a6 {[%clk 0:02:43]} 13. Nc2 {[%clk 0:02:20]}  Bxd3 {[%clk 0:02:12]} 14. Qxd3 {[%clk 0:02:18]}  Ne4 {[%clk 0:02:11]} 15. Be3 {[%clk 0:02:02]}  Rhf8 {[%clk 0:01:45]} 16. Ne1 {[%clk 0:01:56]}  f6 {[%clk 0:01:35]} 17. Nxc6 {[%clk 0:01:55]}  Qxc6 {[%clk 0:01:34]} 18. Nf3 {[%clk 0:01:41]}  Qc7 {[%clk 0:01:14]} 19. Rfc1 {[%clk 0:01:39]}  Kb8 {[%clk 0:01:10]} 20. Rab1 {[%clk 0:01:38]}  e5 {[%clk 0:01:08]} 21. fxe5 {[%clk 0:01:37]}  fxe5 {[%clk 0:01:08]} 22. Nxe5 {[%clk 0:01:31]}  Bxe5 {[%clk 0:01:09]} 23. dxe5 {[%clk 0:01:31]}  Qxe5 {[%clk 0:01:10]} 24. Qd4 {[%clk 0:01:26]}  Qxd4 {[%clk 0:01:01]} 25. Bxd4 {[%clk 0:01:27]}  Rde8 {[%clk 0:00:56]} 26. Rf1 {[%clk 0:01:22]}  Rxf1+ {[%clk 0:00:51]} 27. Rxf1 {[%clk 0:01:21]}  Re7 {[%clk 0:00:47]} 28. Rf8+ {[%clk 0:00:59]}  Kc7 {[%clk 0:00:45]} 29. Rh8 {[%clk 0:00:53]}  Ng3 {[%clk 0:00:41]} 30. Kf2 {[%clk 0:00:48]}  Nf5 {[%clk 0:00:33]} 31. g4 {[%clk 0:00:37]}  Nxd4 {[%clk 0:00:31]} 32. cxd4 {[%clk 0:00:38]}  Kb6 {[%clk 0:00:32]} 33. Kf3 {[%clk 0:00:35]}  Kb5 {[%clk 0:00:30]} 34. b3 {[%clk 0:00:31]}  Kb4 {[%clk 0:00:28]} 35. Rd8 {[%clk 0:00:30]}  Ka3 {[%clk 0:00:25]} 36. Rxd5 {[%clk 0:00:30]}  Kxa2 {[%clk 0:00:24]} 37. Re5 {[%clk 0:00:26]}  Rd7 {[%clk 0:00:23]} 38. d5 {[%clk 0:00:26]}  Kxb3 {[%clk 0:00:23]} 39. Ke4 {[%clk 0:00:27]}  a5 {[%clk 0:00:23]} 40. Re6 {[%clk 0:00:21]}  a4 {[%clk 0:00:22]} 41. Rb6+ {[%clk 0:00:21]}  Kc2 {[%clk 0:00:20]} 42. Ke5 {[%clk 0:00:19]}  a3 {[%clk 0:00:21]} 43. Rb5 {[%clk 0:00:15]}  a2 {[%clk 0:00:20]} 44. Ra5 {[%clk 0:00:16]}  Kb2 {[%clk 0:00:20]} 45. Ke6 {[%clk 0:00:15]}  Rd8 {[%clk 0:00:20]} 46. d6 {[%clk 0:00:15]}  a1=Q {[%clk 0:00:20]} 47. Rxa1 {[%clk 0:00:15]}  Kxa1 {[%clk 0:00:21]} 48. Ke7 {[%clk 0:00:15]}  Rh8 {[%clk 0:00:22]} 49. d7 {[%clk 0:00:15]}  b5 {[%clk 0:00:23]} 50. d8=Q {[%clk 0:00:15]}  Rxd8 {[%clk 0:00:23]} 51. Kxd8 {[%clk 0:00:16]}  b4 {[%clk 0:00:24]} 52. Ke7 {[%clk 0:00:17]}  b3 {[%clk 0:00:25]} 53. Kf7 {[%clk 0:00:17]}  b2 {[%clk 0:00:26]} 54. Kg7 {[%clk 0:00:18]}  b1=Q {[%clk 0:00:27]} 55. Kxh7 {[%clk 0:00:19]}  g5+ {[%clk 0:00:27]} 56. Kh6 {[%clk 0:00:19]}  Qb5 {[%clk 0:00:28]} 57. h4 {[%clk 0:00:16]}  gxh4 {[%clk 0:00:28]} 0-1


[Site "https://www.chess.com"]

[Event "Titled Tuesday Blitz November 14 Late 2023"]
[White "Figorito, Nick"]
[Black "Kopacz, Grzegorz"]
[WhiteFideId "30923689"]
[BlackFideId "1109880"]
[WhiteElo "2401"]
[BlackElo "2268"]
[Result "1-0"]
[Round "4"]
[TimeControl "180+1"]
[Date "2023.11.14"]
[WhiteClock "0:00:24"]
[BlackClock "0:00:00"]
[Board "149"]

1. Nf3 {[%clk 0:03:00]}  c5 {[%clk 0:02:55]} 2. g3 {[%clk 0:03:01]}  Nc6 {[%clk 0:02:54]} 3. d4 {[%clk 0:03:01]}  cxd4 {[%clk 0:02:53]} 4. Nxd4 {[%clk 0:03:02]}  g6 {[%clk 0:02:53]} 5. c4 {[%clk 0:03:01]}  Bg7 {[%clk 0:02:53]} 6. Nc2 {[%clk 0:03:01]}  Nf6 {[%clk 0:02:53]} 7. Bg2 {[%clk 0:03:01]}  O-O {[%clk 0:02:52]} 8. O-O {[%clk 0:03:02]}  d6 {[%clk 0:02:52]} 9. Nc3 {[%clk 0:03:02]}  Be6 {[%clk 0:02:52]} 10. b3 {[%clk 0:03:02]}  Qa5 {[%clk 0:02:51]} 11. Bb2 {[%clk 0:03:00]}  Qh5 {[%clk 0:02:51]} 12. Ne3 {[%clk 0:02:56]}  Bh3 {[%clk 0:02:49]} 13. Qd2 {[%clk 0:02:51]}  Bh6 {[%clk 0:02:39]} 14. Bf3 {[%clk 0:02:37]}  Qc5 {[%clk 0:02:29]} 15. Rfc1 {[%clk 0:02:15]}  Ng4 {[%clk 0:02:08]} 16. Ncd1 {[%clk 0:02:13]}  Nxe3 {[%clk 0:01:55]} 17. Nxe3 {[%clk 0:02:11]}  Rab8 {[%clk 0:01:49]} 18. Qc3 {[%clk 0:02:06]}  Ne5 {[%clk 0:01:42]} 19. Nd5 {[%clk 0:01:55]}  Rfe8 {[%clk 0:01:35]} 20. Bg2 {[%clk 0:01:47]}  Bxg2 {[%clk 0:01:08]} 21. Kxg2 {[%clk 0:01:48]}  f6 {[%clk 0:00:59]} 22. Rd1 {[%clk 0:01:42]}  Rbc8 {[%clk 0:00:54]} 23. Qd4 {[%clk 0:01:38]}  Qxd4 {[%clk 0:00:52]} 24. Bxd4 {[%clk 0:01:39]}  b6 {[%clk 0:00:51]} 25. Bxe5 {[%clk 0:01:36]}  fxe5 {[%clk 0:00:50]} 26. a4 {[%clk 0:01:37]}  e6 {[%clk 0:00:45]} 27. Nc3 {[%clk 0:01:35]}  Bf8 {[%clk 0:00:40]} 28. Nb5 {[%clk 0:01:29]}  d5 {[%clk 0:00:25]} 29. cxd5 {[%clk 0:01:23]}  exd5 {[%clk 0:00:25]} 30. Rxd5 {[%clk 0:01:19]}  a6 {[%clk 0:00:25]} 31. Nd6 {[%clk 0:01:13]}  Red8 {[%clk 0:00:25]} 32. Nxc8 {[%clk 0:01:13]}  Rxd5 {[%clk 0:00:24]} 33. Nxb6 {[%clk 0:01:10]}  Rd2 {[%clk 0:00:24]} 34. e3 {[%clk 0:01:05]}  Rb2 {[%clk 0:00:20]} 35. Nc4 {[%clk 0:00:59]}  Rxb3 {[%clk 0:00:20]} 36. Nxe5 {[%clk 0:01:00]}  Bg7 {[%clk 0:00:20]} 37. f4 {[%clk 0:00:54]}  Bxe5 {[%clk 0:00:20]} 38. fxe5 {[%clk 0:00:54]}  Rxe3 {[%clk 0:00:21]} 39. Rb1 {[%clk 0:00:49]}  Rxe5 {[%clk 0:00:21]} 40. Rb6 {[%clk 0:00:48]}  a5 {[%clk 0:00:21]} 41. Rb5 {[%clk 0:00:45]}  Re2+ {[%clk 0:00:16]} 42. Kg1 {[%clk 0:00:40]}  Ra2 {[%clk 0:00:16]} 43. Rxa5 {[%clk 0:00:39]}  Kg7 {[%clk 0:00:16]} 44. Ra7+ {[%clk 0:00:38]}  Kg8 {[%clk 0:00:15]} 45. a5 {[%clk 0:00:39]}  h6 {[%clk 0:00:14]} 46. a6 {[%clk 0:00:37]}  Kh8 {[%clk 0:00:14]} 47. h4 {[%clk 0:00:33]}  Kg8 {[%clk 0:00:14]} 48. Ra8+ {[%clk 0:00:28]}  Kg7 {[%clk 0:00:14]} 49. a7 {[%clk 0:00:29]}  h5 {[%clk 0:00:13]} 50. Kf1 {[%clk 0:00:29]}  Kh7 {[%clk 0:00:13]} 51. Ke1 {[%clk 0:00:29]}  Kg7 {[%clk 0:00:13]} 52. Kd1 {[%clk 0:00:29]}  Kh7 {[%clk 0:00:13]} 53. Kc1 {[%clk 0:00:30]}  Kg7 {[%clk 0:00:12]} 54. Kb1 {[%clk 0:00:30]}  Ra6 {[%clk 0:00:12]} 55. Kc2 {[%clk 0:00:30]}  Ra1 {[%clk 0:00:12]} 56. Kd3 {[%clk 0:00:30]}  Kh7 {[%clk 0:00:11]} 57. Ke4 {[%clk 0:00:31]}  Kg7 {[%clk 0:00:11]} 58. Ke5 {[%clk 0:00:31]}  Ra5+ {[%clk 0:00:11]} 59. Ke6 {[%clk 0:00:31]}  Ra6+ {[%clk 0:00:11]} 60. Kd5 {[%clk 0:00:31]}  Ra1 {[%clk 0:00:11]} 61. Kc6 {[%clk 0:00:31]}  Rc1+ {[%clk 0:00:11]} 62. Kb6 {[%clk 0:00:30]}  Rb1+ {[%clk 0:00:11]} 63. Kc5 {[%clk 0:00:30]}  Rc1+ {[%clk 0:00:12]} 64. Kd4 {[%clk 0:00:30]}  Rd1+ {[%clk 0:00:12]} 65. Ke3 {[%clk 0:00:31]}  Ra1 {[%clk 0:00:12]} 66. Kf3 {[%clk 0:00:31]}  Ra6 {[%clk 0:00:12]} 67. g4 {[%clk 0:00:27]}  hxg4+ {[%clk 0:00:11]} 68. Kxg4 {[%clk 0:00:27]}  Ra4+ {[%clk 0:00:11]} 69. Kg5 {[%clk 0:00:27]}  Ra5+ {[%clk 0:00:12]} 70. Kf4 {[%clk 0:00:27]}  Ra4+ {[%clk 0:00:12]} 71. Ke5 {[%clk 0:00:28]}  Ra1 {[%clk 0:00:12]} 72. Kd6 {[%clk 0:00:26]}  Rd1+ {[%clk 0:00:12]} 73. Kc6 {[%clk 0:00:25]}  Rc1+ {[%clk 0:00:13]} 74. Kb5 {[%clk 0:00:26]}  Rb1+ {[%clk 0:00:13]} 75. Kc4 {[%clk 0:00:25]}  Ra1 {[%clk 0:00:13]} 76. Kc5 {[%clk 0:00:24]}  Rc1+ {[%clk 0:00:13]} 77. Kb5 {[%clk 0:00:23]}  Rb1+ {[%clk 0:00:14]} 78. Kc6 {[%clk 0:00:23]}  Rc1+ {[%clk 0:00:14]} 79. Kd6 {[%clk 0:00:24]}  Rd1+ {[%clk 0:00:14]} 80. Kc7 {[%clk 0:00:24]}  Rc1+ {[%clk 0:00:14]} 81. Kd8 {[%clk 0:00:24]}  Rd1+ {[%clk 0:00:15]} 82. Ke8 {[%clk 0:00:25]}  Re1+ {[%clk 0:00:15]} 83. Kd7 {[%clk 0:00:26]}  Rd1+ {[%clk 0:00:15]} 84. Ke6 {[%clk 0:00:26]}  Re1+ {[%clk 0:00:16]} 85. Kd5 {[%clk 0:00:27]}  Rd1+ {[%clk 0:00:16]} 86. Kc4 {[%clk 0:00:28]}  Rc1+ {[%clk 0:00:16]} 87. Kb3 {[%clk 0:00:28]}  Ra1 {[%clk 0:00:16]} 88. Kb4 {[%clk 0:00:27]}  Rb1+ {[%clk 0:00:16]} 89. Ka3 {[%clk 0:00:28]}  Ra1+ {[%clk 0:00:16]} 90. Kb2 {[%clk 0:00:28]}  Ra6 {[%clk 0:00:16]} 91. Kc2 {[%clk 0:00:26]}  Ra1 {[%clk 0:00:15]} 92. Kd2 {[%clk 0:00:26]}  Ra2+ {[%clk 0:00:15]} 93. Ke3 {[%clk 0:00:26]}  Ra3+ {[%clk 0:00:13]} 94. Kd4 {[%clk 0:00:27]}  Ra4+ {[%clk 0:00:13]} 95. Kc5 {[%clk 0:00:27]}  Ra5+ {[%clk 0:00:13]} 96. Kb6 {[%clk 0:00:27]}  Ra1 {[%clk 0:00:00]} 97. Rc8 {[%clk 0:00:24]} 1-0


[Site "https://www.chess.com"]

[Event "Titled Tuesday Blitz November 14 Late 2023"]
[White "Perry, Patrick"]
[Black "Qiao, Cindy"]
[WhiteFideId "30917727"]
[BlackFideId "2620243"]
[WhiteElo "2255"]
[BlackElo "2398"]
[Result "0-1"]
[Round "4"]
[TimeControl "180+1"]
[Date "2023.11.14"]
[WhiteClock "0:00:00"]
[BlackClock "0:01:38"]
[Board "150"]

1. e4 {[%clk 0:03:00]}  c5 {[%clk 0:02:58]} 2. d4 {[%clk 0:02:47]}  cxd4 {[%clk 0:02:57]} 3. Nf3 {[%clk 0:02:32]}  d6 {[%clk 0:02:57]} 4. Nxd4 {[%clk 0:02:31]}  Nf6 {[%clk 0:02:57]} 5. Nc3 {[%clk 0:02:26]}  g6 {[%clk 0:02:57]} 6. Be3 {[%clk 0:02:17]}  Bg7 {[%clk 0:02:57]} 7. Be2 {[%clk 0:02:12]}  Nc6 {[%clk 0:02:56]} 8. Nb3 {[%clk 0:02:02]}  O-O {[%clk 0:02:55]} 9. O-O {[%clk 0:01:47]}  Bd7 {[%clk 0:02:52]} 10. f4 {[%clk 0:01:41]}  Rc8 {[%clk 0:02:42]} 11. Qe1 {[%clk 0:01:37]}  Bg4 {[%clk 0:02:32]} 12. Rd1 {[%clk 0:01:33]}  Qc7 {[%clk 0:02:23]} 13. a3 {[%clk 0:01:24]}  Rfd8 {[%clk 0:02:12]} 14. Bf3 {[%clk 0:01:13]}  Bxf3 {[%clk 0:02:03]} 15. gxf3 {[%clk 0:01:10]}  Na5 {[%clk 0:01:56]} 16. Nxa5 {[%clk 0:01:06]}  Qxa5 {[%clk 0:01:57]} 17. Nd5 {[%clk 0:01:01]}  Qxe1 {[%clk 0:01:48]} 18. Rfxe1 {[%clk 0:01:01]}  Nxd5 {[%clk 0:01:46]} 19. exd5 {[%clk 0:00:53]}  Rxc2 {[%clk 0:01:47]} 20. Bxa7 {[%clk 0:00:44]}  Rd7 {[%clk 0:01:43]} 21. Rc1 {[%clk 0:00:37]}  Rxc1 {[%clk 0:01:40]} 22. Rxc1 {[%clk 0:00:31]}  h5 {[%clk 0:01:40]} 23. Rc8+ {[%clk 0:00:28]}  Kh7 {[%clk 0:01:41]} 24. b3 {[%clk 0:00:20]}  e6 {[%clk 0:01:40]} 25. dxe6 {[%clk 0:00:15]}  fxe6 {[%clk 0:01:40]} 26. Re8 {[%clk 0:00:14]}  e5 {[%clk 0:01:39]} 27. fxe5 {[%clk 0:00:07]}  Bxe5 {[%clk 0:01:40]} 28. Be3 {[%clk 0:00:00]}  Kg7 {[%clk 0:01:38]} 0-1


[Site "https://www.chess.com"]

[Event "Titled Tuesday Blitz November 14 Late 2023"]
[White "Petersson, Kjell"]
[Black "Degtiarev, Evgeny"]
[WhiteFideId "1705148"]
[BlackFideId "4149610"]
[WhiteElo "2137"]
[BlackElo "2375"]
[Result "0-1"]
[Round "4"]
[TimeControl "180+1"]
[Date "2023.11.14"]
[WhiteClock "0:00:22"]
[BlackClock "0:00:08"]
[Board "151"]

1. d4 {[%clk 0:03:00]}  Nf6 {[%clk 0:02:58]} 2. Bf4 {[%clk 0:03:01]}  d5 {[%clk 0:02:58]} 3. e3 {[%clk 0:03:01]}  c5 {[%clk 0:02:58]} 4. Nd2 {[%clk 0:03:00]}  Nc6 {[%clk 0:02:58]} 5. c3 {[%clk 0:02:59]}  Qb6 {[%clk 0:02:53]} 6. Qb3 {[%clk 0:02:59]}  c4 {[%clk 0:02:50]} 7. Qc2 {[%clk 0:02:59]}  g6 {[%clk 0:02:49]} 8. e4 {[%clk 0:02:59]}  dxe4 {[%clk 0:02:35]} 9. Nxe4 {[%clk 0:02:58]}  Nxe4 {[%clk 0:02:32]} 10. Qxe4 {[%clk 0:02:55]}  Qxb2 {[%clk 0:02:31]} 11. Rc1 {[%clk 0:02:44]}  Bg7 {[%clk 0:02:15]} 12. Bxc4 {[%clk 0:02:43]}  O-O {[%clk 0:02:09]} 13. Ne2 {[%clk 0:02:38]}  Bf5 {[%clk 0:01:55]} 14. Qe3 {[%clk 0:02:30]}  Na5 {[%clk 0:01:52]} 15. Bd3 {[%clk 0:02:19]}  Bxd3 {[%clk 0:01:51]} 16. Qxd3 {[%clk 0:02:20]}  Qxa2 {[%clk 0:01:51]} 17. O-O {[%clk 0:02:18]}  Qc4 {[%clk 0:01:48]} 18. Qe3 {[%clk 0:02:16]}  e6 {[%clk 0:01:45]} 19. Bh6 {[%clk 0:02:10]}  b5 {[%clk 0:01:37]} 20. Bxg7 {[%clk 0:02:09]}  Kxg7 {[%clk 0:01:37]} 21. Qe5+ {[%clk 0:02:08]}  f6 {[%clk 0:01:32]} 22. Qd6 {[%clk 0:02:04]}  Rf7 {[%clk 0:01:27]} 23. Nf4 {[%clk 0:01:55]}  Re8 {[%clk 0:01:13]} 24. Rfe1 {[%clk 0:01:51]}  Rfe7 {[%clk 0:01:09]} 25. h4 {[%clk 0:01:46]}  Qc6 {[%clk 0:00:53]} 26. Qb4 {[%clk 0:01:42]}  Qc7 {[%clk 0:00:46]} 27. g3 {[%clk 0:01:33]}  a6 {[%clk 0:00:44]} 28. h5 {[%clk 0:01:21]}  Nc4 {[%clk 0:00:41]} 29. hxg6 {[%clk 0:01:19]}  hxg6 {[%clk 0:00:40]} 30. Qb1 {[%clk 0:01:18]}  f5 {[%clk 0:00:36]} 31. Qd3 {[%clk 0:01:07]}  Kf6 {[%clk 0:00:28]} 32. Qf3 {[%clk 0:01:06]}  Rh8 {[%clk 0:00:26]} 33. Kg2 {[%clk 0:01:02]}  Nd2 {[%clk 0:00:20]} 34. Qe3 {[%clk 0:00:57]}  Ne4 {[%clk 0:00:19]} 35. f3 {[%clk 0:00:56]}  Ng5 {[%clk 0:00:11]} 36. d5 {[%clk 0:00:52]}  e5 {[%clk 0:00:10]} 37. Nd3 {[%clk 0:00:50]}  Reh7 {[%clk 0:00:09]} 38. Rh1 {[%clk 0:00:49]}  Rxh1 {[%clk 0:00:08]} 39. Rxh1 {[%clk 0:00:50]}  Rxh1 {[%clk 0:00:08]} 40. Kxh1 {[%clk 0:00:51]}  Qxc3 {[%clk 0:00:08]} 41. Qb6+ {[%clk 0:00:41]}  Kg7 {[%clk 0:00:08]} 42. Qc7+ {[%clk 0:00:37]}  Nf7 {[%clk 0:00:08]} 43. Nf2 {[%clk 0:00:22]}  Qxc7 {[%clk 0:00:08]} 0-1


[Site "https://www.chess.com"]

[Event "Titled Tuesday Blitz November 14 Late 2023"]
[White "Smirnov, Timofey"]
[Black "chessjazda"]
[WhiteFideId "24176427"]
[WhiteElo "2103"]
[BlackElo "2334"]
[Result "0-1"]
[Round "4"]
[TimeControl "180+1"]
[Date "2023.11.14"]
[WhiteClock "0:00:00"]
[BlackClock "0:01:42"]
[Board "153"]

1. d4 {[%clk 0:02:51]}  d6 {[%clk 0:02:56]} 2. Bf4 {[%clk 0:02:50]}  Bf5 {[%clk 0:02:54]} 3. e3 {[%clk 0:02:38]}  Nd7 {[%clk 0:02:53]} 4. Nf3 {[%clk 0:02:32]}  h6 {[%clk 0:02:49]} 5. h3 {[%clk 0:02:31]}  g5 {[%clk 0:02:48]} 6. Bh2 {[%clk 0:02:30]}  Ngf6 {[%clk 0:02:48]} 7. Bd3 {[%clk 0:02:29]}  Bxd3 {[%clk 0:02:45]} 8. Qxd3 {[%clk 0:02:30]}  Bg7 {[%clk 0:02:43]} 9. c4 {[%clk 0:02:25]}  e6 {[%clk 0:02:43]} 10. Nc3 {[%clk 0:02:08]}  Qe7 {[%clk 0:02:43]} 11. a3 {[%clk 0:01:56]}  O-O {[%clk 0:02:42]} 12. O-O {[%clk 0:01:49]}  c6 {[%clk 0:02:38]} 13. b4 {[%clk 0:01:47]}  e5 {[%clk 0:02:31]} 14. dxe5 {[%clk 0:01:45]}  Nxe5 {[%clk 0:02:27]} 15. Nxe5 {[%clk 0:01:44]}  dxe5 {[%clk 0:02:27]} 16. Rad1 {[%clk 0:01:42]}  Rad8 {[%clk 0:02:26]} 17. Qc2 {[%clk 0:01:42]}  Qe6 {[%clk 0:02:20]} 18. c5 {[%clk 0:01:38]}  Nd5 {[%clk 0:02:16]} 19. Nxd5 {[%clk 0:01:34]}  Rxd5 {[%clk 0:02:14]} 20. e4 {[%clk 0:01:30]}  Rd4 {[%clk 0:02:12]} 21. Rxd4 {[%clk 0:01:27]}  exd4 {[%clk 0:02:12]} 22. f3 {[%clk 0:01:09]}  Be5 {[%clk 0:02:06]} 23. Bxe5 {[%clk 0:01:05]}  Qxe5 {[%clk 0:02:07]} 24. Rd1 {[%clk 0:01:04]}  Rd8 {[%clk 0:02:06]} 25. Qd3 {[%clk 0:01:03]}  Qe6 {[%clk 0:02:04]} 26. Qe2 {[%clk 0:00:50]}  Kg7 {[%clk 0:01:57]} 27. Qf2 {[%clk 0:00:50]}  Qe5 {[%clk 0:01:53]} 28. g3 {[%clk 0:00:43]}  f6 {[%clk 0:01:49]} 29. Kg2 {[%clk 0:00:42]}  d3 {[%clk 0:01:49]} 30. Qe3 {[%clk 0:00:35]}  Qb2+ {[%clk 0:01:47]} 31. Kg1 {[%clk 0:00:20]}  Qxa3 {[%clk 0:01:44]} 32. e5 {[%clk 0:00:19]}  Qxb4 {[%clk 0:01:44]} 33. exf6+ {[%clk 0:00:19]}  Kxf6 {[%clk 0:01:43]} 34. Rxd3 {[%clk 0:00:15]}  Qb1+ {[%clk 0:01:43]} 35. Kg2 {[%clk 0:00:00]}  Qxd3 {[%clk 0:01:42]} 0-1


[Site "https://www.chess.com"]

[Event "Titled Tuesday Blitz November 14 Late 2023"]
[White "Ramadoss, Ashokkumar"]
[Black "katharinareinecke"]
[WhiteFideId "5040990"]
[WhiteElo "2332"]
[BlackElo "1954"]
[Result "1-0"]
[Round "4"]
[TimeControl "180+1"]
[Date "2023.11.14"]
[WhiteClock "0:00:45"]
[BlackClock "0:00:03"]
[Board "154"]

1. Nf3 {[%clk 0:03:00]}  d5 {[%clk 0:02:55]} 2. c4 {[%clk 0:02:58]}  c6 {[%clk 0:02:46]} 3. Qc2 {[%clk 0:02:58]}  Nf6 {[%clk 0:02:44]} 4. d4 {[%clk 0:02:58]}  e6 {[%clk 0:02:43]} 5. cxd5 {[%clk 0:02:57]}  exd5 {[%clk 0:02:38]} 6. Bg5 {[%clk 0:02:57]}  Be7 {[%clk 0:02:37]} 7. e3 {[%clk 0:02:57]}  O-O {[%clk 0:02:37]} 8. Bd3 {[%clk 0:02:57]}  h6 {[%clk 0:02:35]} 9. Bh4 {[%clk 0:02:56]}  Re8 {[%clk 0:02:28]} 10. Nc3 {[%clk 0:02:56]}  Nbd7 {[%clk 0:02:27]} 11. O-O {[%clk 0:02:56]}  Nf8 {[%clk 0:02:27]} 12. Rab1 {[%clk 0:02:56]}  Ne6 {[%clk 0:02:14]} 13. b4 {[%clk 0:02:54]}  Nd7 {[%clk 0:02:05]} 14. Bg3 {[%clk 0:02:53]}  a5 {[%clk 0:01:58]} 15. b5 {[%clk 0:02:49]}  Nc7 {[%clk 0:01:43]} 16. bxc6 {[%clk 0:02:44]}  bxc6 {[%clk 0:01:43]} 17. Na4 {[%clk 0:02:42]}  Nb8 {[%clk 0:01:29]} 18. Ne5 {[%clk 0:02:14]}  Bd7 {[%clk 0:01:24]} 19. Nb6 {[%clk 0:02:11]}  Bd6 {[%clk 0:00:29]} 20. Nxa8 {[%clk 0:01:59]}  Nxa8 {[%clk 0:00:20]} 21. Rb7 {[%clk 0:00:50]}  Bxe5 {[%clk 0:00:16]} 22. Bxe5 {[%clk 0:00:51]}  f6 {[%clk 0:00:11]} 23. Rxb8 {[%clk 0:00:48]}  Qxb8 {[%clk 0:00:10]} 24. Bxb8 {[%clk 0:00:49]}  Rxb8 {[%clk 0:00:11]} 25. Rb1 {[%clk 0:00:49]}  Rc8 {[%clk 0:00:10]} 26. Bf5 {[%clk 0:00:47]}  Bxf5 {[%clk 0:00:09]} 27. Qxf5 {[%clk 0:00:48]}  Rd8 {[%clk 0:00:09]} 28. Qe6+ {[%clk 0:00:47]}  Kh7 {[%clk 0:00:03]} 29. Rb7 {[%clk 0:00:45]} 1-0


[Site "https://www.chess.com"]